bitfinex-derivatives/quotes_BNBF0:USTF0_20250316
["timestamp","ask_amount","ask_price","bid_price","bid_amount"]
[1742117909467,0.33105457,604.13,602.49,0.33195571]
[1742117911869,0.28863859,604.12,602.49,0.33195571]
[1742117912966,0.33107101,604.1,602.49,0.33195571]
[1742117914970,0.2886757,604.09,602.49,0.33195571]
[1742117916767,0.2886757,604.09,601.86,0.28887579]
[1742117916974,0.2886757,604.09,601.88,0.33229215]
[1742117917173,0.2886757,604.09,601.89,1.38715497]
[1742117917372,0.2886757,604.09,601.9,1.38715497]
[1742117917571,0.33113131,603.99,601.91,1.71943055]
[1742117917876,0.33113131,603.99,601.92,4.56106846]
[1742117918073,0.33113131,603.99,601.93,1.71941951]
[1742117918271,0.33113131,603.99,601.94,1.71941399]
[1742117918471,0.33113131,603.99,601.95,1.38715497]
[1742117918671,0.33113131,603.99,601.96,1.38715497]
[1742117918872,0.33113131,603.99,601.97,4.56106846]
[1742117919075,0.33113131,603.99,601.98,1.38715497]
[1742117919276,0.33113131,603.99,601.99,1.02003649]
[1742117919479,0.33113131,603.99,601.97,3.17391349]
[1742117919681,0.33113131,603.99,601.98,2.93824255]
[1742117919881,0.33113131,603.99,601.98,1.55297291]
[1742117920282,0.33113131,603.99,601.99,1.22073596]
[1742117920683,0.33113131,603.99,602.0,1.22073596]
[1742117920883,0.2887799,603.98,602.0,1.22073596]
[1742117921383,0.33114775,603.96,602.01,1.22073596]
[1742117922184,0.33114775,603.96,602.02,1.22073596]
[1742117923084,0.33114775,603.96,601.98,0.33223695]
[1742117924890,0.33114775,603.96,601.99,1.21618175]
[1742117925791,0.33114775,603.96,601.98,0.33223695]
[1742117926896,0.28883503,603.95,601.98,0.33223695]
[1742117927093,0.3311642,603.93,601.98,0.33223695]
[1742117929189,2.50617599,603.85,601.98,0.33223695]
[1742117929590,0.33121905,603.83,601.98,0.33223695]
[1742117931292,2.50617599,603.76,601.98,0.33223695]
[1742117931490,0.33126842,603.74,601.98,0.33223695]
[1742117933897,2.50617599,603.73,601.98,0.33223695]
[1742117935295,0.33128488,603.71,601.98,0.33223695]
[1742117936195,0.28889498,603.7,601.98,0.33223695]
[1742117936498,0.33130135,603.68,601.98,0.33223695]
[1742117938998,0.28889258,603.67,601.98,0.33223695]
[1742117939199,0.33131781,603.65,601.98,0.33223695]
[1742117941998,0.6201912,603.65,601.98,0.33223695]
[1742117942200,2.50617599,603.53,601.98,0.33223695]
[1742117942400,0.33139467,603.51,601.98,0.33223695]
[1742117944399,2.50617599,603.44,601.98,0.33223695]
[1742117944598,0.3314386,603.43,601.98,0.33223695]
[1742117955709,2.50617599,603.12,601.98,0.33223695]
[1742117957513,2.50617599,603.12,601.99,1.21712399]
[1742117957705,2.50617599,603.12,602.0,0.33222591]
[1742117957913,2.50617599,603.19,602.01,0.30504152]
[1742117958113,2.50617599,603.19,602.02,3.49659817]
[1742117958415,2.50617599,603.19,602.03,0.33220935]
[1742117958710,2.50617599,603.19,602.03,3.49659265]
[1742117959314,2.50617599,603.19,602.04,1.21712399]
[1742117959519,2.50617599,603.19,602.05,0.33219832]
[1742117959712,2.50617599,603.21,602.05,0.33219832]
[1742117961922,2.50617599,603.21,602.06,1.22025452]
[1742117962320,2.50617599,603.21,602.05,0.33219832]
[1742117963020,2.50617599,603.23,602.05,0.33219832]
[1742117964420,2.50617599,603.23,602.06,1.22242109]
[1742117964620,2.50617599,603.23,602.06,1.55461389]
[1742117964822,2.50617599,603.2,602.06,1.55461389]
[1742117965022,2.50617599,603.2,602.07,1.22242109]
[1742117966417,2.50617599,603.36,602.08,1.35450203]
[1742117966722,2.50617599,603.36,602.09,0.33217625]
[1742117967226,2.50617599,603.36,602.1,0.36956209]
[1742117967523,2.50617599,603.36,602.11,0.33216521]
[1742117967718,2.50617599,603.36,602.12,1.39229277]
[1742117967927,2.50617599,603.36,602.13,1.72444695]
[1742117968223,2.50617599,603.36,602.14,1.72444143]
[1742117968518,2.50617599,603.36,602.15,1.72443592]
[1742117968724,2.50617599,603.36,602.16,1.7244304]
[1742117968925,2.50617599,603.36,602.17,1.72442489]
[1742117969121,2.50617599,603.36,602.18,1.72441937]
[1742117969323,2.50617599,603.36,602.19,1.72441386]
[1742117969523,2.50617599,603.36,602.2,1.72440834]
[1742117969824,2.50617599,603.36,602.21,4.90570397]
[1742117970022,2.50617599,603.36,602.22,1.72439731]
[1742117970223,2.83761459,603.43,602.23,1.355514]
[1742117970423,2.83761459,603.43,602.24,2.57792957]
[1742117970623,2.83761459,603.43,602.25,1.35550297]
[1742117970824,2.83761459,603.43,602.26,1.35549745]
[1742117971123,2.83761459,603.43,602.27,2.57831309]
[1742117971323,2.83761459,603.43,602.28,1.02420831]
[1742117971526,2.83761459,603.43,602.29,1.02420831]
[1742117971823,2.83761459,603.43,602.29,1.22242109]
[1742117972218,2.83761459,603.43,602.27,0.33207697]
[1742117972418,0.3314386,603.43,602.27,0.33207697]
[1742117972822,0.3314386,603.43,602.28,1.22618735]
[1742117973219,0.3314386,603.43,602.27,0.33207697]
[1742117974522,0.3314386,603.43,602.28,1.22740904]
[1742117975319,0.3314386,603.43,602.29,1.22740904]
[1742117975727,0.3314386,603.43,602.3,1.02555834]
[1742117975926,0.3314386,603.43,602.31,2.25296738]
[1742117976128,0.3314386,603.43,602.32,1.02555834]
[1742117976423,0.3314386,603.43,602.33,1.02516707]
[1742117976627,0.3314386,603.43,602.34,1.02516707]
[1742117976827,0.3314386,603.43,602.35,1.02516707]
[1742117977129,0.3314386,603.43,602.27,0.33207697]
[1742117977130,0.3314386,603.43,602.36,1.22740904]
[1742117977425,0.3314386,603.43,602.37,0.33202184]
[1742117977827,0.3314386,603.43,602.37,1.55943088]
[1742117978632,0.3314386,603.43,602.37,0.33202184]
[1742117979820,0.3314386,603.43,602.38,2.2500534]
[1742117980028,0.3314386,603.43,602.39,1.3561092]
[1742117980220,0.3314386,603.43,602.4,0.33200531]
[1742117980724,2.50617599,603.95,602.41,2.24971186]
[1742117980926,0.3311642,603.93,602.41,1.22595502]
[1742117981322,0.3311642,603.93,602.4,0.33200531]
[1742117994949,2.50617599,603.7,602.4,0.33200531]
[1742117999158,2.50617599,603.61,602.4,0.33200531]
[1742118001662,2.50617599,603.64,602.4,0.33200531]
[1742118002661,2.50617599,603.64,602.17,0.28869845]
[1742118002866,2.50617599,603.64,602.18,1.39282484]
[1742118003055,2.50617599,603.64,602.19,1.39282484]
[1742118003263,2.50617599,603.64,602.2,1.39282484]
[1742118003455,2.50617599,603.64,602.21,1.39282484]
[1742118003661,2.50617599,603.64,602.22,1.02278161]
[1742118003856,2.50617599,603.77,602.23,1.02278161]
[1742118004058,2.50617599,603.77,602.24,1.02278161]
[1742118004661,2.50617599,603.77,602.25,2.24702448]
[1742118004866,2.50617599,603.77,602.26,1.0229663]
[1742118005165,2.50617599,603.77,602.27,1.02300137]
[1742118005364,2.50617599,603.77,602.26,1.22405818]
[1742118005562,2.50617599,603.77,602.27,1.02299594]
[1742118005762,2.50617599,603.79,602.18,3.18283901]
[1742118005962,2.50617599,603.79,602.19,1.39311992]
[1742118006166,2.50617599,603.79,602.2,1.39311992]
[1742118006466,2.50617599,603.79,602.21,1.39311992]
[1742118006671,2.50617599,603.79,602.22,1.02299967]
[1742118006866,2.50617599,603.79,602.23,1.02299967]
[1742118007261,2.50617599,603.79,602.24,1.22405818]
[1742118007456,2.50617599,603.79,602.25,1.02299967]
[1742118007662,2.50617599,603.79,602.26,1.22405818]
[1742118008065,2.50617599,604.09,602.26,1.22405818]
[1742118008066,2.50617599,603.74,602.26,1.22405818]
[1742118008269,2.50617599,603.74,602.13,0.28868767]
[1742118008565,2.50617599,603.74,602.14,1.39354509]
[1742118008766,2.50617599,603.74,602.15,1.39354509]
[1742118009064,2.50617599,603.74,602.16,1.39354509]
[1742118009265,2.50617599,603.74,602.17,1.39354509]
[1742118009460,2.50617599,603.74,602.18,1.39354509]
[1742118009672,2.50617599,603.74,602.19,1.02329926]
[1742118009865,2.50617599,603.74,602.2,1.02374629]
[1742118010167,2.50617599,603.92,602.21,1.02394388]
[1742118010365,2.50617599,603.92,602.22,1.02394388]
[1742118010560,2.50617599,603.92,602.0,0.28873558]
[1742118010763,2.50617599,603.92,602.01,1.39449877]
[1742118010962,2.50617599,603.92,602.23,1.22547932]
[1742118011466,2.50617599,603.92,602.24,1.22547932]
[1742118011863,2.50617599,603.83,602.24,1.22547932]
[1742118012063,2.50617599,603.83,602.01,3.18658737]
[1742118012265,2.50617599,603.83,602.02,1.39505733]
[1742118012461,2.50617599,603.83,602.03,1.39505733]
[1742118012766,2.50617599,603.83,602.04,4.5816447]
[1742118012967,2.50617599,603.83,602.05,1.39505733]
[1742118013166,2.50617599,603.83,602.06,1.39505733]
[1742118013365,2.50617599,603.83,602.07,1.39505733]
[1742118013568,2.50617599,603.83,602.08,1.39505733]
[1742118013763,2.50617599,603.83,602.09,1.39505733]
[1742118013962,2.50617599,603.83,602.1,1.39505733]
[1742118014162,2.50617599,603.83,602.11,1.39505733]
[1742118014364,2.50617599,603.83,602.12,4.5816447]
[1742118014562,2.50617599,603.83,602.13,1.39505733]
[1742118014767,2.50617599,603.83,602.14,1.39505733]
[1742118014963,2.50617599,603.83,602.15,1.39505733]
[1742118015163,2.50617599,603.83,602.16,1.39505733]
[1742118015365,2.50617599,603.83,602.17,1.39505733]
[1742118015562,2.50617599,603.8,602.18,1.39505733]
[1742118015768,2.50617599,603.8,602.19,1.39505733]
[1742118015968,2.50617599,603.8,602.2,1.39505733]
[1742118016169,2.50617599,603.8,602.21,4.5816447]
[1742118016369,2.50617599,603.8,602.22,1.39505733]
[1742118016568,2.50617599,603.8,602.23,1.39505733]
[1742118016770,2.50617599,603.8,602.24,1.39505733]
[1742118016968,2.50617599,603.8,602.25,1.39505733]
[1742118017267,0.28870324,604.06,602.26,1.39505733]
[1742118017465,0.28870324,604.06,602.27,1.39505733]
[1742118017667,0.28870324,604.06,602.28,1.39505733]
[1742118017967,0.28870324,604.06,602.29,1.39637707]
[1742118018267,0.28870324,604.06,602.3,1.39637707]
[1742118018469,0.28870324,604.06,602.31,1.39637707]
[1742118018768,0.28870324,604.06,602.32,1.39637707]
[1742118018966,0.28870324,604.06,602.33,1.39637707]
[1742118019167,0.28870324,604.06,602.34,1.39637707]
[1742118019368,0.28870324,604.06,602.31,3.18658737]
[1742118019369,0.28870324,604.06,602.35,1.39637707]
[1742118019563,0.28870324,604.06,602.0,0.28873558]
[1742118019564,0.28870324,604.06,602.36,1.39637707]
[1742118019765,2.50617599,604.09,602.37,1.02571438]
[1742118019965,0.28864816,604.06,602.37,1.02571438]
[1742118020570,0.28864816,604.06,602.38,1.22547932]
[1742118021364,0.28864816,604.06,602.04,0.28864816]
[1742118021365,0.28864816,604.06,602.05,3.19075149]
[1742118021569,0.28864816,604.06,602.06,1.39806567]
[1742118021770,0.28864816,604.06,602.07,1.39806567]
[1742118021967,0.28864816,604.06,602.08,1.39806567]
[1742118022166,0.28864816,604.06,602.09,1.39806567]
[1742118022367,0.28864816,604.06,602.1,4.58881716]
[1742118022569,0.28864816,604.06,602.11,1.39806567]
[1742118022769,2.50617599,604.07,602.12,1.39806567]
[1742118022970,2.50617599,604.85,602.13,4.58881716]
[1742118022971,2.50617599,603.85,602.13,4.58881716]
[1742118023165,2.50617599,603.85,602.14,1.39806567]
[1742118023369,2.50617599,603.85,602.15,1.39806567]
[1742118023563,2.50617599,603.85,602.16,4.58881716]
[1742118023766,2.50617599,603.85,602.17,1.3982827]
[1742118023971,2.50617599,603.85,602.18,1.3982827]
[1742118024172,2.50617599,603.85,602.19,1.3982827]
[1742118024373,2.50617599,603.85,602.2,1.02661104]
[1742118024674,2.50617599,603.85,602.2,3.19075149]
[1742118025071,0.28870564,604.05,602.2,3.19075149]
[1742118025271,0.28870564,604.05,601.97,3.19075149]
[1742118025471,0.28870564,604.05,601.98,1.39943455]
[1742118025675,2.50617599,604.37,601.99,1.39943455]
[1742118025872,2.50617599,604.37,602.0,4.59018604]
[1742118026070,0.28871043,604.04,602.01,1.39943455]
[1742118026271,2.50617599,604.37,602.02,1.39943455]
[1742118026474,2.50617599,604.37,602.03,1.39943455]
[1742118026771,2.50617599,604.37,602.04,4.59018604]
[1742118026979,2.50617599,604.0,602.05,1.39943455]
[1742118027178,2.50617599,604.0,602.06,1.39943455]
[1742118027477,2.50617599,604.0,602.07,1.39943455]
[1742118027678,2.50617599,604.0,602.08,0.37182264]
[1742118027878,2.50617599,604.0,602.05,3.19075149]
[1742118028477,2.50617599,604.0,602.06,1.39926572]
[1742118028678,2.50617599,604.0,602.05,3.19075149]
[1742118028878,0.33113679,603.98,602.06,0.3321928]
[1742118029077,0.33113679,603.98,602.07,1.02755271]
[1742118029277,0.33113679,603.98,602.08,1.35973447]
[1742118029578,0.33113679,603.98,602.09,0.33217625]
[1742118032183,0.33113679,603.98,602.1,1.02719735]
[1742118032388,0.33113679,603.98,602.09,0.33217625]
[1742118032585,0.33113679,603.98,602.1,1.02681318]
[1742118032785,0.33113679,603.98,602.09,0.33217625]
[1742118032982,0.33113679,603.98,602.1,1.02681316]
[1742118033181,0.33113679,603.98,602.11,1.02677504]
[1742118033389,0.33113679,603.98,602.12,1.22848694]
[1742118033982,0.33113679,603.98,602.13,1.22848694]
[1742118034583,0.33113679,603.98,602.09,0.33217625]
[1742118034891,0.28874995,603.97,602.09,0.33217625]
[1742118037388,2.50617599,603.26,602.09,0.33217625]
[1742118037591,2.50617599,603.26,600.9,1.21798514]
[1742118037791,2.50617599,603.26,601.55,0.2888698]
[1742118037993,2.50617599,603.26,601.56,1.7005542]
[1742118038187,2.50617599,603.26,601.57,2.62194465]
[1742118038388,2.50617599,603.26,601.58,1.7005542]
[1742118038589,2.50617599,603.26,601.59,1.7005542]
[1742118038796,2.50617599,603.26,601.6,1.39536122]
[1742118039091,2.50617599,603.26,601.61,1.39536122]
[1742118039296,2.50617599,603.26,601.62,1.39536122]
[1742118039496,2.50617599,603.32,601.63,1.39536122]
[1742118039799,2.50617599,603.32,601.64,1.72778592]
[1742118040097,2.50617599,603.32,601.65,4.58447814]
[1742118040295,2.50617599,603.32,601.66,1.72777487]
[1742118040495,2.50617599,603.32,601.67,1.39536122]
[1742118040692,2.50617599,603.32,601.68,1.72776382]
[1742118040890,2.50617599,603.32,601.69,1.39536122]
[1742118041194,2.50617599,603.32,601.7,1.39536122]
[1742118041390,2.50617599,603.32,601.71,1.39536122]
[1742118041590,2.50617599,603.32,601.72,1.02486995]
[1742118041795,2.50617599,603.32,601.73,1.02486995]
[1742118041996,2.50617599,603.32,601.74,1.02486995]
[1742118042195,2.50617599,603.32,601.73,1.22658343]
[1742118042394,0.28895255,603.51,601.74,0.33236946]
[1742118042699,0.28895255,603.51,601.74,1.55895289]
[1742118043397,0.33140565,603.49,601.75,1.22658343]
[1742118044097,0.33140565,603.49,601.76,1.22658343]
[1742118045296,0.33140565,603.49,601.74,0.33236946]
[1742118045704,0.33140565,603.49,601.75,1.22197101]
[1742118046096,0.33140565,603.49,601.76,1.22197101]
[1742118046700,0.33140565,603.49,601.75,1.22197101]
[1742118047001,0.33140565,603.49,601.75,1.55433494]
[1742118047201,0.33140565,603.49,601.76,1.22197101]
[1742118048203,0.33140565,603.49,601.75,0.33236393]
[1742118048204,0.33140565,603.49,601.77,1.22197101]
[1742118048800,0.33140565,603.49,601.78,1.22197101]
[1742118049506,0.33140565,603.49,601.79,1.38863612]
[1742118049801,0.33140565,603.49,601.8,1.01994123]
[1742118050008,0.33140565,603.49,601.81,1.01994123]
[1742118050199,0.33140565,603.49,601.82,1.69358772]
[1742118050404,0.33140565,603.49,601.83,1.69358772]
[1742118050709,0.33140565,603.49,601.84,1.69358772]
[1742118051001,0.33140565,603.49,601.85,1.69358772]
[1742118051200,0.33140565,603.49,601.86,1.69358772]
[1742118051400,0.33140565,603.49,601.87,1.69358772]
[1742118051600,0.33140565,603.49,601.88,1.69358772]
[1742118051805,0.33140565,603.49,601.89,4.86810131]
[1742118052105,0.33140565,603.49,601.9,1.69353947]
[1742118052303,0.33140565,603.49,601.91,4.86810131]
[1742118052505,0.33140565,603.49,601.92,1.69353947]
[1742118052805,0.33140565,603.49,601.93,4.86809605]
[1742118053007,2.50617599,603.45,601.94,1.6935429]
[1742118053205,2.50617599,603.45,601.95,1.69349078]
[1742118053400,2.50617599,603.45,601.96,1.69349078]
[1742118053603,2.50617599,603.45,601.97,1.3884271]
[1742118053800,2.50617599,603.45,601.98,1.3884271]
[1742118054010,2.50617599,603.45,601.99,1.3884271]
[1742118054300,2.50617599,603.45,602.0,4.52662308]
[1742118054503,2.50617599,603.45,602.01,0.33222039]
[1742118054805,0.33143311,603.44,602.02,3.17456184]
[1742118055402,0.33143311,603.44,602.03,1.22197101]
[1742118055802,2.50617599,603.43,602.04,1.55417485]
[1742118056002,2.50617599,603.43,602.05,0.33219832]
[1742118058107,0.33144959,603.41,602.05,0.33219832]
[1742118059006,2.50617599,603.16,602.05,0.33219832]
[1742118059211,0.33159247,603.15,602.05,0.33219832]
[1742118062310,2.50617599,603.13,602.05,0.33219832]
[1742118063004,2.50617599,603.13,602.05,0.31856178]
[1742118063711,0.33159247,603.15,602.05,0.31856178]
[1742118066910,0.32159144,603.15,602.05,0.31856178]
[1742118083123,2.50617599,603.13,602.05,0.31856178]
[1742118085223,0.32159144,603.15,602.05,0.31856178]
[1742118092131,2.50617599,602.98,602.05,0.31856178]
[1742118093934,2.50617599,603.11,602.05,0.31856178]
[1742118094533,0.33161996,603.1,602.05,0.31856178]
[1742118097235,0.33161996,603.1,601.54,0.28899574]
[1742118097438,0.33161996,603.1,601.56,0.33246891]
[1742118097739,0.33161996,603.1,601.57,1.39858448]
[1742118098040,0.33161996,603.1,601.58,1.73104234]
[1742118098239,0.33161996,603.1,601.59,1.39858448]
[1742118098439,0.33161996,603.1,601.6,1.39858448]
[1742118098640,0.33161996,603.1,601.61,1.39858448]
[1742118098835,0.33161996,603.1,601.62,1.39858448]
[1742118099034,0.33161996,603.1,601.63,1.39858448]
[1742118099234,0.33161996,603.1,601.64,1.73100918]
[1742118099438,0.33161996,603.1,601.65,1.39858448]
[1742118099638,0.33161996,603.1,601.66,1.73099813]
[1742118099837,0.33161996,603.1,601.67,1.73099261]
[1742118100039,0.33161996,603.1,601.68,1.39858448]
[1742118100239,0.33161996,603.1,601.69,1.73098156]
[1742118100537,0.33161996,603.1,601.7,4.92713856]
[1742118100738,0.33161996,603.1,601.71,1.39858448]
[1742118100940,0.33161996,603.1,601.72,1.39858448]
[1742118101146,0.33161996,603.1,601.73,1.73095946]
[1742118101337,0.33161996,603.1,601.74,1.39858448]
[1742118101543,0.33161996,603.1,601.75,1.39858448]
[1742118101738,0.33161996,603.1,601.76,1.39858448]
[1742118101943,0.33161996,603.1,601.77,1.39858448]
[1742118102139,0.33161996,603.1,601.78,1.39858448]
[1742118102342,0.33161996,603.1,601.79,4.59474701]
[1742118102544,0.33161996,603.1,601.8,1.3984266]
[1742118102738,0.33161996,603.1,601.81,1.3984266]
[1742118102949,0.33161996,603.1,601.82,1.02720625]
[1742118103150,0.33161996,603.1,601.83,1.02720625]
[1742118103350,0.33161996,603.1,601.84,1.02720625]
[1742118103550,0.33161996,603.1,601.81,3.19616253]
[1742118103752,0.33161996,603.1,601.85,1.22929328]
[1742118104152,0.33161996,603.1,601.86,1.22929328]
[1742118104752,0.33161996,603.1,601.87,1.22929328]
[1742118105153,0.33161996,603.1,601.73,0.33237498]
[1742118105453,0.33161996,603.1,601.74,1.39787479]
[1742118105655,0.33161996,603.1,601.75,1.39787479]
[1742118105853,0.33161996,603.1,601.76,1.39787479]
[1742118106154,0.33161996,603.1,601.77,1.39787479]
[1742118106449,0.33161996,603.1,601.78,1.39787479]
[1742118106653,0.33161996,603.1,601.79,1.02669134]
[1742118106850,0.33161996,603.1,601.8,1.02669134]
[1742118107155,0.33161996,603.1,601.81,1.22872551]
[1742118107853,0.33161996,603.1,601.82,1.22872551]
[1742118108355,0.33161996,603.1,601.83,1.22872551]
[1742118108750,0.33161996,603.1,601.74,0.33236946]
[1742118108955,0.33161996,603.1,601.75,1.3976204]
[1742118109155,0.33161996,603.1,601.76,1.02649988]
[1742118109455,0.33161996,603.1,601.76,2.25507904]
[1742118109657,0.33161996,603.1,601.77,1.02649988]
[1742118109852,0.33161996,603.1,601.77,1.22857916]
[1742118110050,0.33161996,603.1,601.78,1.02637972]
[1742118110256,0.33161996,603.1,601.79,1.22857916]
[1742118110757,0.33161996,603.1,601.8,1.22857916]
[1742118111354,0.33161996,603.1,601.81,1.22857916]
[1742118111755,0.33161996,603.1,601.82,1.22857916]
[1742118112258,0.33161996,603.1,601.83,1.22857916]
[1742118113059,0.33161996,603.1,601.84,1.22857916]
[1742118114053,0.33161996,603.1,601.75,0.33236393]
[1742118114253,0.33161996,603.1,601.76,1.02641337]
[1742118114457,0.33161996,603.1,601.77,1.02641337]
[1742118114658,0.33161996,603.1,601.78,1.02641337]
[1742118115160,0.33161996,603.1,601.77,1.22858403]
[1742118115460,0.33161996,603.1,601.75,0.33236393]
[1742118116859,0.33161996,603.1,601.76,1.22904227]
[1742118117059,0.33161996,603.1,601.77,0.33235289]
[1742118117360,0.33161996,603.1,601.77,1.56139516]
[1742118117860,0.33161996,603.1,601.77,0.33235289]
[1742118122157,0.33161996,603.1,601.78,1.02692171]
[1742118122463,0.33161996,603.1,601.77,0.33235289]
[1742118122764,0.33161996,603.1,601.78,1.02687971]
[1742118122963,0.33161996,603.1,601.77,0.33235289]
[1742118123156,0.33161996,603.1,601.78,1.2290206]
[1742118124157,0.33161996,603.1,601.79,1.2290206]
[1742118124760,0.33161996,603.1,601.8,1.2290206]
[1742118125161,0.33161996,603.1,601.81,1.2290206]
[1742118125869,0.33161996,603.1,601.77,0.33235289]
[1742118126460,0.33161996,603.1,601.78,1.22878678]
[1742118127063,0.33161996,603.1,601.77,0.33235289]
[1742118128560,0.33161996,603.1,601.78,1.22863275]
[1742118128765,0.33161996,603.1,601.79,1.22863275]
[1742118129166,0.33161996,603.1,601.8,1.22863275]
[1742118129761,0.33161996,603.1,601.77,0.33235289]
[1742118129965,0.33161996,603.1,601.78,1.22869743]
[1742118130562,0.33161996,603.1,601.77,0.33235289]
[1742118137066,2.49509535,602.88,601.77,0.33235289]
[1742118139466,0.33161996,603.1,601.77,0.33235289]
[1742118141372,0.33161996,603.1,601.78,1.02786433]
[1742118141576,0.33161996,603.1,601.79,1.36020617]
[1742118141771,0.33161996,603.1,601.8,1.36020065]
[1742118141972,0.33161996,603.1,601.81,0.3323308]
[1742118142574,0.33161996,603.1,601.82,1.23016274]
[1742118142874,2.49509535,603.05,601.83,0.33231975]
[1742118143475,2.49509535,603.05,601.84,1.23016274]
[1742118144580,2.49509535,603.05,601.85,1.02835967]
[1742118144884,2.49509535,603.04,601.86,1.02835967]
[1742118145076,2.49509535,603.04,601.83,0.33231975]
[1742118145277,2.49509535,603.04,601.84,1.02839436]
[1742118145576,2.49509535,603.04,601.83,0.33231975]
[1742118145577,2.49509535,603.04,601.85,1.02839436]
[1742118145775,2.49509535,603.04,601.83,0.33231975]
[1742118145977,2.49509535,603.04,601.84,1.23107546]
[1742118146381,2.49509535,603.04,601.85,2.25972424]
[1742118146584,2.49509535,603.04,601.85,1.23107546]
[1742118146781,2.49509535,602.99,601.85,1.23107546]
[1742118146975,2.49509535,602.99,601.84,1.23107546]
[1742118148280,0.33168045,602.99,601.84,1.23107546]
[1742118148480,0.33168045,602.99,601.83,0.33231975]
[1742118150676,2.49509535,602.95,601.83,0.33231975]
[1742118153986,2.49509535,602.79,601.83,0.33231975]
[1742118156083,2.49509535,602.93,601.83,0.33231975]
[1742118158286,0.33168045,602.99,601.83,0.33231975]
[1742118168491,2.49509535,602.98,601.83,0.33231975]
[1742118168689,0.33169146,602.97,601.83,0.33231975]
[1742118171191,2.49509535,602.96,601.83,0.33231975]
[1742118173390,2.49509535,602.91,601.83,0.33231975]
[1742118175288,2.49509535,602.89,601.83,0.33231975]
[1742118176990,2.49509535,602.87,601.83,0.33231975]
[1742118181495,0.33169146,602.97,601.83,0.33231975]
[1742118181496,2.49509535,602.62,601.83,0.33231975]
[1742118183806,2.49509535,602.58,601.83,0.33231975]
[1742118185205,2.49509535,602.58,601.84,1.23191238]
[1742118186208,0.33169146,602.97,601.84,1.23191238]
[1742118186508,0.33169146,602.97,601.85,1.23191238]
[1742118187303,0.33169146,602.97,601.86,1.23191238]
[1742118188106,0.33169146,602.97,601.87,1.23191238]
[1742118188708,0.33169146,602.97,601.88,1.23191238]
[1742118189211,0.33169146,602.97,601.83,0.33231975]
[1742118189512,0.33169146,602.97,601.84,1.029228]
[1742118189710,0.33169146,602.97,601.83,0.33231975]
[1742118190412,0.33169146,602.97,601.84,1.23180028]
[1742118190911,0.33169146,602.97,601.85,1.23180028]
[1742118191614,0.33169146,602.97,601.86,1.23180028]
[1742118192019,0.33169146,602.97,601.87,1.02906052]
[1742118192211,0.33169146,602.97,601.88,1.02906052]
[1742118192410,0.33169146,602.97,601.89,1.02906052]
[1742118192715,0.33169146,602.97,601.87,1.23180028]
[1742118192915,0.33169146,602.97,601.88,1.02885144]
[1742118193116,0.33169146,602.97,601.89,1.02885144]
[1742118193316,0.33169146,602.97,601.88,1.23180028]
[1742118193515,0.33169146,602.97,601.89,1.02866212]
[1742118193714,0.33169146,602.97,601.89,1.23180028]
[1742118194111,0.33169146,602.97,601.9,1.23180028]
[1742118194311,0.33169146,602.97,601.91,1.73235337]
[1742118194517,0.33169146,602.97,601.92,4.60107176]
[1742118194717,0.33169146,602.97,601.93,1.73234233]
[1742118195018,2.49509535,603.2,601.94,1.73233681]
[1742118195321,2.49509535,603.2,601.95,4.93128019]
[1742118195518,2.49509535,603.2,601.96,4.93127467]
[1742118195718,2.49509535,603.2,601.97,1.73232026]
[1742118195919,2.49509535,603.2,601.98,1.73231474]
[1742118196117,2.49509535,603.2,601.99,1.73230922]
[1742118196419,2.49509535,603.2,602.0,1.7323037]
[1742118196718,2.49509535,603.2,602.01,2.96409846]
[1742118196914,2.49509535,604.43,602.02,1.73229266]
[1742118197112,0.33106553,604.11,602.03,1.36055727]
[1742118197313,0.33106553,604.11,602.04,1.02834792]
[1742118197513,0.33106553,604.11,602.05,1.02834792]
[1742118197820,0.33106553,604.11,602.06,1.02604171]
[1742118198016,0.33106553,604.11,602.07,2.25784199]
[1742118198211,0.33106553,604.11,602.07,1.23180028]
[1742118198412,0.28870803,604.1,602.08,2.25730584]
[1742118198714,0.28870803,604.1,602.08,1.23180028]
[1742118199418,0.28870803,604.1,602.09,1.23180028]
[1742118199820,0.33106553,604.11,602.03,0.33220935]
[1742118200220,0.2887811,604.09,602.03,0.33220935]
[1742118200420,0.33113131,603.99,602.03,0.33220935]
[1742118203117,0.28880507,603.98,602.03,0.33220935]
[1742118203320,0.33114775,603.96,602.03,0.33220935]
[1742118203523,2.49509535,603.54,602.03,0.33220935]
[1742118203724,0.33138918,603.52,602.03,0.33220935]
[1742118207827,2.49509535,603.32,602.03,0.33220935]
[1742118210132,2.49509535,603.41,602.03,0.33220935]
[1742118210325,0.33145508,603.4,602.03,0.33220935]
[1742118217835,2.49509535,603.36,602.03,0.33220935]
[1742118218132,0.33148255,603.35,602.03,0.33220935]
[1742118220230,2.49509535,603.22,602.03,0.33220935]
[1742118221326,0.33155949,603.21,602.03,0.33220935]
[1742118222224,2.49509535,603.16,602.03,0.33220935]
[1742118223531,0.33159247,603.15,601.5,0.28898494]
[1742118223732,0.33159247,603.15,601.52,0.33249102]
[1742118223933,0.33159247,603.15,601.53,1.39427137]
[1742118224130,0.33159247,603.15,601.54,1.72675133]
[1742118224326,0.33159247,603.15,601.56,0.33246891]
[1742118224529,0.33159247,603.15,601.57,1.39427137]